bitfinex-derivatives/quotes_SOLF0:USTF0_20250507
["timestamp","ask_amount","ask_price","bid_price","bid_amount"]
[1746654439475,38.35840975,147.56,147.45,29.38]
[1746654439880,6.7793,147.49,147.46,6.7802]
[1746654440080,29.38,147.51,147.45,29.38]
[1746654440283,6.7788,147.5,147.47,6.7796]
[1746654440484,29.38,147.51,147.45,29.38]
[1746654441284,36.1583,147.51,147.48,6.7793]
[1746654442081,36.1583,147.51,147.45,29.38]
[1746654442688,36.1583,147.51,147.48,6.7791]
[1746654443189,6.7786,147.5,147.48,6.7791]
[1746654444195,36.1584,147.51,147.48,6.7791]
[1746654444388,29.38,147.51,147.47,6.7796]
[1746654444686,29.38,147.51,147.42,628.7445]
[1746654444891,6.7788,147.5,147.48,6.7795]
[1746654445192,29.38,147.51,147.48,6.7795]
[1746654445591,36.1585,147.51,147.48,6.7795]
[1746654445985,29.38,147.51,147.48,6.7795]
[1746654446189,6.7788,147.5,147.48,6.7795]
[1746654447793,6.7788,147.5,147.47,6.7797]
[1746654448494,6.7791,147.49,147.47,6.7797]
[1746654449595,6.7788,147.5,147.47,6.7797]
[1746654450395,6.7791,147.49,147.47,6.7797]
[1746654450595,29.38,147.51,147.47,6.7797]
[1746654451200,6.7788,147.5,147.47,6.7797]
[1746654451394,6.7788,147.5,147.48,6.7794]
[1746654452495,6.7791,147.49,147.47,6.7797]
[1746654452695,29.38,147.51,147.42,42.9445]
[1746654453290,29.38,147.51,147.47,6.7795]
[1746654453497,29.38,147.51,147.42,42.9445]
[1746654453797,6.7789,147.5,147.42,42.9445]
[1746654455099,6.7791,147.49,147.46,6.7801]
[1746654463412,6.7791,147.49,147.45,6.7807]
[1746654466714,6.7791,147.49,147.46,6.7804]
[1746654466916,6.7791,147.49,147.43,5.74833649]
[1746654467816,6.7791,147.49,147.45,6.7806]
[1746654468012,6.7795,147.48,147.45,6.7806]
[1746654470019,6.7795,147.48,147.46,6.7803]
[1746654470220,6.7793,147.49,147.46,6.7803]
[1746654470821,6.7796,147.48,147.46,6.7803]
[1746654471015,6.7796,147.48,147.45,6.7806]
[1746654473822,6.78,147.47,147.45,6.7806]
[1746654480729,35.12833649,147.47,147.41,4.2462]
[1746654480928,5.74833649,147.45,147.41,4.2462]
[1746654481126,5.75260218,147.45,147.41,4.2462]
[1746654481627,35.13260218,147.47,147.41,11.0287]
[1746654482028,6.7816,147.44,147.41,11.0287]
[1746654486330,6.7816,147.44,147.42,6.7823]
[1746654487924,6.7816,147.44,147.41,11.0287]
[1746654491431,13.556,147.52,147.42,6.7819]
[1746654491630,5.75260218,147.47,147.41,4.2462]
[1746654491832,35.09260218,147.47,147.41,4.2462]
[1746654492634,6.781,147.45,147.41,4.2462]
[1746654493326,6.781,147.45,147.42,6.7822]
[1746654494031,6.781,147.45,147.43,6.7817]
[1746654506440,6.781,147.45,147.42,6.7821]
[1746654507641,12.53197665,147.46,147.41,4.2462]
[1746654507839,29.34,147.47,147.41,9.99757665]
[1746654508842,36.1203,147.47,147.44,6.7811]
[1746654509441,6.7805,147.46,147.43,6.7817]
[1746654525053,6.7809,147.45,147.43,6.7817]
[1746654525259,6.7809,147.45,147.42,6.782]
[1746654525850,6.7809,147.45,147.43,6.7818]
[1746654529061,6.7809,147.45,147.42,6.782]
[1746654529649,6.7809,147.45,147.41,4.2462]
[1746654530365,6.7809,147.45,147.43,6.7818]
[1746654554681,6.7809,147.45,147.42,6.782]
[1746654554980,6.7809,147.45,147.41,4.2462]
[1746654555375,6.7809,147.45,147.43,6.7815]
[1746654555775,6.7809,147.45,147.41,4.2462]
[1746654555980,6.7809,147.45,147.42,6.7819]
[1746654559982,6.7809,147.45,147.43,6.7817]
[1746654567889,6.7809,147.45,147.42,6.782]
[1746654569287,6.7814,147.44,147.42,6.782]
[1746654573291,6.7814,147.44,147.41,4.2462]
[1746654574096,6.7814,147.44,147.42,6.782]
[1746654577895,29.34,147.47,147.42,6.782]
[1746654578298,35.09060262,147.47,147.42,6.782]
[1746654579997,6.7816,147.44,147.42,6.782]
[1746654583401,6.7811,147.45,147.42,6.782]
[1746654584501,6.7814,147.44,147.42,6.782]
[1746654588403,6.7814,147.44,147.41,11.0287]
[1746654589704,6.7819,147.43,147.41,4.2462]
[1746654591612,6.7816,147.44,147.41,4.2462]
[1746654592308,6.7816,147.44,147.41,11.0287]
[1746654593716,35.09122651,147.47,147.42,6.7819]
[1746654594315,35.0913137,147.47,147.42,6.7819]
[1746654595015,6.7813,147.45,147.42,6.7819]
[1746654595211,35.0913137,147.47,147.42,6.7819]
[1746654596220,6.7814,147.44,147.42,6.7819]
[1746654601816,6.7811,147.45,147.42,6.7819]
[1746654602324,6.7814,147.44,147.42,6.7819]
[1746654602523,35.0913137,147.47,147.42,6.7819]
[1746654602922,6.7813,147.45,147.42,6.7819]
[1746654603123,35.0913137,147.47,147.42,6.7819]
[1746654603623,6.7811,147.45,147.42,6.7819]
[1746654609729,6.7811,147.45,147.43,6.7817]
[1746654614227,6.7807,147.46,147.43,6.7817]
[1746654614528,35.0913137,147.47,147.43,6.7817]
[1746654614729,6.7807,147.46,147.43,6.7817]
[1746654616527,6.7809,147.45,147.43,6.7817]
[1746654616829,6.7809,147.45,147.42,6.782]
[1746654620634,6.7809,147.45,147.43,6.7818]
[1746654623740,6.7809,147.45,147.42,6.7821]
[1746654624037,6.7809,147.45,147.41,4.2462]
[1746654624338,6.7809,147.45,147.42,6.7818]
[1746654625340,6.7809,147.45,147.43,6.7818]
[1746654630240,6.7809,147.45,147.42,6.782]
[1746654641750,6.7809,147.45,147.43,6.7818]
[1746654643352,6.7809,147.45,147.41,4.2462]
[1746654643353,29.24,147.46,147.42,6.7823]
[1746654644554,6.781,147.45,147.42,6.7823]
[1746654644856,29.24,147.46,147.42,6.7823]
[1746654645051,6.781,147.45,147.42,6.7823]
[1746654645255,29.24,147.46,147.42,6.7823]
[1746654645754,6.7814,147.44,147.42,6.7823]
[1746654649558,6.7814,147.44,147.41,11.0287]
[1746654650057,6.7814,147.44,147.41,4.2462]
[1746654650257,29.24,147.46,147.42,6.7822]
[1746654650759,6.781,147.45,147.42,6.7822]
[1746654651361,6.7814,147.44,147.42,6.7822]
[1746654651555,6.7814,147.44,147.41,11.0287]
[1746654654462,6.7814,147.44,147.41,4.2462]
[1746654655562,6.7814,147.44,147.39,8.9475]
[1746654655763,6.7814,147.44,147.4,6.7832]
[1746654657258,6.7819,147.43,147.39,8.9478]
[1746654661068,29.24,147.46,147.37,5.75284647]
[1746654661069,5.75284647,147.44,147.37,5.75284647]
[1746654661768,6.7835,147.4,147.37,12.53724647]
[1746654662269,6.7835,147.4,147.37,5.75284647]
[1746654662470,6.7835,147.4,147.37,12.53714647]
[1746654662672,6.7828,147.41,147.37,12.53714647]
[1746654662970,6.7828,147.41,147.37,6.7843]
[1746654663166,6.7828,147.41,147.38,6.784]
[1746654663571,6.7834,147.4,147.37,6.7845]
[1746654666077,34.95424566,147.42,147.36,6.7848]
[1746654666474,5.75544875,147.41,147.36,6.7848]
[1746654666676,6.7841,147.38,147.36,6.7848]
[1746654668680,6.7839,147.39,147.36,6.7848]
[1746654668881,5.75544599,147.41,147.36,6.7848]
[1746654669882,6.7843,147.38,147.36,6.7848]
[1746654673188,6.7843,147.38,147.35,10.9439]
[1746654673485,6.7846,147.37,147.35,10.9439]
[1746654675385,6.7846,147.37,147.34,6.7857]
[1746654676489,6.7851,147.36,147.34,6.7857]
[1746654676792,6.7851,147.36,147.33,8.9123]
[1746654679191,6.7855,147.35,147.33,8.9123]
[1746654680086,6.7855,147.35,147.33,8.85131586]
[1746654681287,6.7855,147.35,147.33,2.06511586]
[1746654681494,29.16,147.38,147.31,110.20143639]
[1746654681694,29.16,147.38,147.31,4.0983]
[1746654681894,5.75719716,147.37,147.31,4.0983]
[1746654682192,6.7867,147.33,147.31,4.0983]
[1746654683193,6.7869,147.32,147.31,4.0983]
[1746654683387,5.75868657,147.37,147.3,6.7876]
[1746654683588,6.7868,147.33,147.3,6.7876]
[1746654683892,5.75868657,147.33,147.28,5.75868657]
[1746654684093,29.16,147.34,147.28,5.75868657]
[1746654684292,6.7876,147.31,147.28,5.75868657]
[1746654684892,29.16,147.34,147.28,5.75868657]
[1746654685395,6.7881,147.3,147.28,5.75868657]
[1746654686194,5.75868657,147.33,147.26,10.9333]
[1746654686490,29.16,147.34,147.28,5.75868657]
[1746654686793,6.7865,147.33,147.3,5.75868657]
[1746654686993,29.16,147.34,147.3,5.75868657]
[1746654687492,35.9462,147.34,147.31,6.7873]
[1746654688394,6.7865,147.33,147.3,5.75868657]
[1746654688594,29.16,147.34,147.3,5.75868657]
[1746654688795,29.16,147.34,147.27,2.1714]
[1746654688994,29.16,147.34,147.29,5.75868657]
[1746654689194,6.7864,147.33,147.3,6.7875]
[1746654689497,6.7864,147.33,147.29,5.75868657]
[1746654689992,6.787,147.32,147.29,5.75868657]
[1746654690297,29.16,147.34,147.29,5.75868657]
[1746654690898,6.7876,147.31,147.29,5.75868657]
[1746654692399,6.7878,147.3,147.29,5.75868657]
[1746654692599,6.7878,147.3,147.27,7.93008657]
[1746654693094,6.7883,147.29,147.27,7.93008657]
[1746654693395,6.7883,147.29,147.27,2.1714]
[1746654693599,6.7883,147.29,147.26,16.69178657]
[1746654693994,6.7888,147.28,147.26,4.1437]
[1746654694401,5.75868657,147.31,147.25,29.16]
[1746654694600,6.7895,147.27,147.24,12.54908657]
[1746654695099,6.7895,147.27,147.24,6.7904]
[1746654695301,6.7895,147.27,147.24,12.54908657]
[1746654695800,6.7888,147.28,147.24,12.54908657]
[1746654696899,6.7888,147.28,147.25,5.75868657]
[1746654697100,6.7884,147.29,147.25,12.54868657]
[1746654697695,6.7884,147.29,147.26,6.7896]
[1746654697899,6.788,147.3,147.26,6.7896]
[1746654698101,5.75868657,147.31,147.22,33.2588]
[1746654698401,6.7885,147.29,147.25,6.7897]
[1746654698701,5.75868657,147.31,147.22,33.2588]
[1746654698995,5.75868657,147.31,147.24,5.75868657]
[1746654699202,6.788,147.3,147.27,6.7891]
[1746654700003,6.7883,147.29,147.27,6.7891]
[1746654700302,6.7883,147.29,147.24,5.75868657]
[1746654700602,6.7889,147.28,147.23,5.75868657]
[1746654700802,6.7889,147.28,147.25,6.7897]
[1746654701302,6.7885,147.29,147.26,6.7896]
[1746654702603,6.7887,147.28,147.26,6.7896]
[1746654703501,5.7694611,147.27,147.15,1.18188456]
[1746654703801,5.76945921,147.22,147.15,5.76945921]
[1746654704001,12.56125921,147.22,147.17,6.7935]
[1746654704201,5.76945921,147.22,147.17,6.7935]
[1746654704504,6.7923,147.21,147.17,6.7935]
[1746654705207,6.7927,147.2,147.17,6.7935]
[1746654707505,29.14,147.23,147.16,6.7941]
[1746654708508,6.7934,147.18,147.15,6.7945]
[1746654709203,38.15370365,147.23,147.15,6.7945]
[1746654710106,6.7936,147.18,147.15,6.7945]
[1746654710402,38.15370365,147.23,147.15,6.7945]
[1746654710710,38.15370365,147.23,147.16,6.7942]
[1746654711301,38.15370365,147.23,147.15,6.7945]
[1746654712109,6.7932,147.19,147.13,6.4415]
[1746654712807,6.7932,147.19,147.16,6.794]
[1746654713004,6.7925,147.2,147.13,15.45520365]
[1746654713508,6.7925,147.2,147.17,6.7934]
[1746654714911,6.7929,147.19,147.17,6.7934]
[1746654715313,6.7929,147.19,147.16,6.794]
[1746654715609,6.7929,147.19,147.13,15.45520365]
[1746654715814,6.7929,147.19,147.16,6.7938]
[1746654716823,6.7926,147.2,147.17,6.7938]
[1746654717116,29.14,147.23,147.17,6.7938]
[1746654717415,6.7928,147.2,147.17,6.7938]
[1746654719013,6.75466776,147.2,147.17,6.7938]
[1746654720417,6.793,147.19,147.17,6.7938]
[1746654720818,6.7921,147.21,147.13,6.4415]
[1746654721317,29.14,147.23,147.13,6.4415]
[1746654721516,6.7917,147.22,147.13,6.4415]
[1746654722118,6.7917,147.22,147.19,6.7926]
[1746654722919,6.792,147.21,147.18,6.7932]
[1746654724022,6.792,147.21,147.17,6.7936]
[1746654724217,6.7926,147.2,147.17,6.7936]
[1746654725820,6.7929,147.19,147.17,6.7936]
[1746654727424,6.7931,147.19,147.16,35.9539]
[1746654727622,6.7931,147.19,147.16,29.16]
[1746654728524,6.7931,147.19,147.17,6.7936]
[1746654729527,6.7927,147.2,147.17,6.7936]
[1746654729825,6.7927,147.2,147.16,29.16]
[1746654730024,9.01325605,147.27,147.16,29.16]
[1746654730225,29.14,147.28,147.16,38.17038553]
[1746654730825,29.14,147.28,147.23,6.7907]
[1746654731227,6.79,147.26,147.23,6.7907]
[1746654731525,29.14,147.28,147.23,6.7907]
[1746654731924,6.79,147.26,147.23,6.7907]
[1746654737535,6.79,147.26,147.24,6.7905]
[1746654738839,6.79,147.26,147.23,6.7908]
[1746654739937,6.79,147.26,147.24,6.7905]
[1746654740538,6.79,147.26,147.23,6.7908]
[1746654745639,6.7901,147.25,147.23,6.7908]
[1746654746641,29.14,147.28,147.21,29.14]
[1746654746942,9.01038553,147.26,147.18,29.12]
[1746654747138,6.7927,147.2,147.18,29.12]
[1746654747335,9.01038553,147.26,147.18,29.12]
[1746654748142,9.01038553,147.26,147.18,35.9133]
[1746654749041,6.7917,147.22,147.18,35.9133]
[1746654749541,6.7917,147.22,147.18,29.12]
[1746654750244,6.7917,147.22,147.19,6.7928]
[1746654751143,6.7917,147.22,147.2,6.7923]
[1746654752443,6.7912,147.23,147.2,6.7923]
[1746654752646,6.7912,147.23,147.18,29.12]
[1746654753245,6.7912,147.23,147.21,6.7919]
[1746654757148,38.15038553,147.28,147.18,29.12]
[1746654757346,9.01038553,147.31,147.18,40.15888553]
[1746654757547,9.08888553,147.34,147.21,9.01038553]
[1746654757746,9.01038553,147.34,147.24,9.01038553]
[1746654757946,9.01038553,147.34,147.25,4.1909]
[1746654758247,6.7858,147.35,147.26,29.14]
[1746654758952,6.7858,147.35,147.3,6.7875]
[1746654759351,6.7858,147.35,147.3,35.9275]
[1746654759851,6.7862,147.34,147.3,35.9275]
[1746654760051,6.7862,147.34,147.3,29.14]
[1746654761249,6.7855,147.35,147.3,29.14]
[1746654761649,9.01038553,147.4,147.3,29.14]
[1746654761854,9.01038553,147.43,147.31,4.199]
[1746654762354,6.7855,147.35,147.32,2.1703]
[1746654762757,6.7852,147.36,147.32,2.1703]
[1746654763056,9.01038553,147.4,147.32,2.1703]
[1746654763556,6.7854,147.36,147.32,8.9572]
[1746654764159,6.7858,147.35,147.32,8.9572]
[1746654764358,6.7858,147.35,147.32,2.1703]
[1746654764557,9.01038553,147.4,147.32,2.1703]
[1746654764859,38.11038553,147.4,147.31,2.04]
[1746654765258,38.11038553,147.4,147.3,29.14]
[1746654765557,0.0729,147.39,147.3,29.14]
[1746654765855,6.7876,147.31,147.28,6.7885]
[1746654766158,6.7876,147.31,147.3,29.1]
[1746654766354,0.0729,147.39,147.27,6.7891]
[1746654766559,0.0729,147.39,147.28,29.1]
[1746654767259,6.7876,147.31,147.28,29.1]
[1746654767760,9.01038553,147.37,147.28,29.1]
[1746654768163,29.1,147.36,147.28,29.1]
[1746654768361,6.7883,147.29,147.28,29.1]
[1746654768760,6.7883,147.29,147.26,2.1695]
[1746654768961,6.7883,147.29,147.27,29.1]
[1746654769161,6.7883,147.29,147.25,11.15008553]
[1746654769162,6.789,147.28,147.24,8.9126]
[1746654769362,6.789,147.28,147.26,29.1]
[1746654770163,6.7885,147.29,147.26,29.1]
[1746654771660,6.7885,147.29,147.26,35.8896]
[1746654772767,6.7887,147.28,147.26,29.1]
[1746654779872,6.7887,147.28,147.26,35.8896]
[1746654781572,6.7885,147.29,147.26,35.8896]
[1746654787877,6.7887,147.28,147.26,35.8896]
[1746654789979,6.7885,147.29,147.26,35.8896]
[1746654790179,29.1,147.36,147.26,29.1]
[1746654790878,6.7877,147.31,147.28,6.7884]
[1746654791784,6.7879,147.3,147.28,6.7884]
[1746654796485,6.7883,147.29,147.27,6.789]
[1746654796886,29.1,147.36,147.25,4.1728]
[1746654797082,6.7894,147.27,147.25,40.0428]
[1746654797587,6.7894,147.27,147.25,10.9628]
[1746654801689,6.7889,147.28,147.25,10.9628]
[1746654803395,6.7892,147.27,147.25,8.9411]
[1746654803588,29.08,147.32,147.24,31.2022]
[1746654803893,29.08,147.32,147.21,29.08]
[1746654804091,29.08,147.32,147.22,6.7914]
[1746654804289,9.010825,147.31,147.21,29.08]
[1746654804496,9.0132081,147.29,147.19,4.226]
[1746654804692,6.7918,147.22,147.19,11.0186]
[1746654804888,29.08,147.28,147.19,4.226]
[1746654805089,6.7922,147.21,147.19,4.226]
[1746654805595,29.1545,147.28,147.19,4.226]
[1746654805790,6.7917,147.22,147.19,4.226]
[1746654805996,29.1545,147.28,147.19,4.226]
[1746654806296,6.7914,147.23,147.19,11.0187]
[1746654807095,6.7915,147.22,147.19,11.0187]
[1746654807594,6.7915,147.22,147.2,6.7923]
[1746654808297,6.7915,147.22,147.19,8.922]
[1746654808490,6.792,147.21,147.19,8.922]
[1746654809594,6.792,147.21,147.19,6.7926]
[1746654810097,6.792,147.21,147.18,6.7932]
[1746654811399,6.792,147.21,147.19,6.7928]
[1746654813196,6.792,147.21,147.18,6.7932]
[1746654813600,6.792,147.21,147.17,35.8936]
[1746654814294,6.7928,147.2,147.17,35.8936]
[1746654814803,6.7928,147.2,147.17,29.1]
[1746654815305,6.7929,147.19,147.17,29.1]
[1746654816502,6.7934,147.18,147.16,6.7941]
[1746654816699,29.1,147.24,147.16,6.7941]
[1746654816899,6.7932,147.19,147.16,6.7941]
[1746654817099,29.1,147.24,147.15,6.7946]
[1746654817604,29.1,147.24,147.14,37.9027]
[1746654818005,6.794,147.17,147.14,37.9027]
[1746654820403,6.7943,147.16,147.14,37.9027]
[1746654820801,6.7943,147.16,147.14,8.8027]
[1746654821106,29.1,147.24,147.14,8.8027]
[1746654821510,6.794,147.17,147.14,8.8027]
[1746654822611,6.7943,147.16,147.14,8.8027]
[1746654823111,6.7947,147.16,147.14,2.0078]
[1746654823307,29.08,147.2,147.14,2.0078]
[1746654823511,29.08,147.2,147.12,4.1746]
[1746654823706,29.08,147.2,147.12,2.13]
[1746654823707,6.7956,147.13,147.12,2.13]
[1746654824311,29.08,147.2,147.11,29.08]
[1746654825714,6.7955,147.14,147.11,29.08]
[1746654826007,29.08,147.2,147.11,29.08]
[1746654826202,29.08,147.2,147.11,38.0932081]
[1746654826408,29.08,147.2,147.12,2.0102]
[1746654826912,6.7926,147.2,147.17,6.7935]
[1746654827510,6.7926,147.2,147.15,11.0542]
[1746654828118,6.7929,147.19,147.15,11.0542]
[1746654828516,6.7929,147.19,147.15,4.2595]
[1746654829112,6.7925,147.2,147.15,11.0539]
[1746654829417,29.1,147.23,147.15,40.1539]
[1746654829717,6.793,147.19,147.15,40.1539]
[1746654830417,6.7934,147.18,147.15,40.1539]
[1746654830814,6.7934,147.18,147.15,33.3595]
[1746654831516,6.7938,147.17,147.15,33.3595]
[1746654832116,6.7943,147.16,147.15,33.3595]
[1746654832420,6.7943,147.16,147.15,4.2595]
[1746654832619,6.7943,147.16,147.12,31.1102]
[1746654832620,29.1,147.19,147.12,31.1102]
[1746654832813,6.7956,147.13,147.12,29.1]
[1746654833722,29.1,147.18,147.08,29.1]
[1746654836221,6.7956,147.14,147.09,6.7974]
[1746654836923,6.7957,147.13,147.09,6.7974]
[1746654837720,6.7957,147.13,147.1,6.797]
[1746654839124,6.7954,147.14,147.11,6.7964]
[1746654840427,6.7954,147.14,147.12,6.7961]
[1746654842427,29.1,147.18,147.12,6.7961]
[1746654842628,29.1,147.18,147.13,6.7955]
[1746654842926,6.7945,147.16,147.13,6.7955]
[1746654843327,29.1,147.18,147.09,9.0132081]
[1746654843527,29.1,147.21,147.12,9.0132081]
[1746654843728,29.1,147.21,147.13,33.2343]
[1746654843929,6.7913,147.23,147.15,9.0132081]
[1746654844129,6.7913,147.23,147.16,2.1131]
[1746654844327,6.7913,147.23,147.17,29.1]
[1746654845431,6.7915,147.22,147.2,6.792]
[1746654845729,6.7915,147.22,147.17,29.1]
[1746654846732,6.7922,147.21,147.17,29.1]
[1746654847032,29.1,147.24,147.17,29.1]
[1746654847731,6.7929,147.19,147.17,29.1]
[1746654848326,29.1,147.24,147.16,2.1131]
[1746654848531,9.0132081,147.23,147.16,2.1131]
[1746654848926,9.0132081,147.2,147.1,29.1]
[1746654849127,29.1,147.19,147.1,29.1]
[1746654849530,6.7945,147.16,147.12,6.796]
[1746654849832,29.1,147.19,147.12,6.796]
[1746654850432,29.1,147.19,147.13,6.7956]
[1746654850633,6.7945,147.16,147.14,4.1866]
[1746654851033,29.1,147.19,147.14,4.1866]
[1746654852134,6.7945,147.16,147.14,4.1866]
[1746654852531,6.7947,147.15,147.14,4.1866]
[1746654852930,29.1,147.19,147.1,29.1]
[1746654853128,6.7958,147.13,147.1,35.8968]
[1746654855634,6.7958,147.13,147.11,6.7964]
[1746654855834,6.7958,147.13,147.1,29.1]
[1746654856235,6.7958,147.13,147.1,35.8967]
[1746654859939,6.7958,147.13,147.11,6.7965]
[1746654861439,6.7958,147.13,147.1,35.8968]
[1746654861739,6.7962,147.12,147.1,35.8968]
[1746654862642,6.7958,147.13,147.1,35.8968]
[1746654862942,6.7958,147.13,147.11,6.7966]
[1746654865140,6.7962,147.12,147.1,6.7967]
[1746654865344,29.1,147.19,147.09,29.08]
[1746654865841,6.7964,147.12,147.09,35.8771]
[1746654867843,6.7964,147.12,147.1,6.797]
[1746654870344,29.08,147.15,147.09,29.08]
[1746654870544,29.1,147.18,147.09,29.08]
[1746654871443,6.795,147.15,147.13,6.7956]
[1746654873544,6.7945,147.16,147.13,6.7956]
[1746654873738,6.7945,147.16,147.14,6.7951]
[1746654878147,42.6645,147.21,147.13,6.7955]
[1746654878548,6.7945,147.16,147.13,6.7955]
[1746654885952,42.6645,147.21,147.08,13.1551081]
[1746654885953,6.7934,147.18,147.16,6.7941]
[1746654886155,29.08,147.21,147.13,38.09633453]
[1746654886361,29.08,147.21,147.14,6.3794]
[1746654886663,6.793,147.19,147.16,6.7942]
[1746654886861,6.793,147.19,147.14,6.3794]
[1746654887562,6.793,147.19,147.15,6.7945]
[1746654887960,29.08,147.21,147.14,6.3794]
[1746654888160,29.08,147.21,147.16,6.794]
[1746654888560,29.08,147.21,147.14,6.3794]
[1746654888761,29.08,147.21,147.15,6.7944]
[1746654889060,6.7932,147.19,147.14,6.3794]
[1746654889252,29.08,147.21,147.15,6.7944]
[1746654889756,6.7936,147.18,147.15,6.7944]
[1746654890156,6.7936,147.18,147.16,6.7941]
[1746654893565,6.7938,147.17,147.15,6.7946]
[1746654894462,6.7935,147.18,147.15,6.7946]
[1746654896468,6.7935,147.18,147.16,6.7942]
[1746654897765,6.7935,147.18,147.15,6.7945]
[1746654899473,6.7935,147.18,147.16,6.7942]
[1746654901872,6.793,147.19,147.17,6.7938]
[1746654903675,6.7926,147.2,147.18,6.7933]
[1746654904376,6.7919,147.22,147.16,9.01609132]
[1746654905478,6.7919,147.22,147.2,6.7922]
[1746654910579,6.7912,147.23,147.21,6.7919]
[1746654910879,29.08,147.24,147.21,6.7919]
[1746654911680,6.7909,147.24,147.21,6.7919]
[1746654911881,29.08,147.27,147.22,6.7912]
[1746654912079,29.08,147.27,147.17,29.08]
[1746654912680,6.7903,147.25,147.17,29.08]
[1746654914279,29.08,147.27,147.17,29.08]
[1746654914582,6.7906,147.24,147.22,6.7913]
[1746654915084,6.7906,147.24,147.21,6.7917]
[1746654915277,6.7904,147.25,147.21,29.06]
[1746654915472,29.08,147.27,147.22,4.2582]
[1746654916584,6.7908,147.24,147.22,11.0495]
[1746654926595,6.7903,147.25,147.22,11.0495]
[1746654929492,5.76627867,147.28,147.23,5.76627867]
[1746654929697,34.82627867,147.3,147.23,5.76627867]
[1746654930198,6.7888,147.28,147.25,6.7901]
[1746654930798,6.7885,147.29,147.26,6.7894]
[1746654933899,6.7888,147.28,147.26,6.7894]
[1746654937310,6.7883,147.29,147.27,6.7892]
[1746654937596,6.7883,147.29,147.25,34.82627867]
[1746654938403,6.7883,147.29,147.25,29.06]
[1746654938599,6.7883,147.29,147.26,5.76627867]
[1746654939199,6.7883,147.29,147.27,6.7889]
[1746654939403,6.788,147.3,147.26,5.76627867]
[1746654939803,6.788,147.3,147.28,6.7885]
[1746654940006,6.7876,147.31,147.26,5.76627867]
[1746654940403,6.7876,147.31,147.28,6.7883]
[1746654945216,6.7879,147.3,147.28,6.7883]
[1746654951818,6.7874,147.31,147.28,6.7883]
[1746654953219,6.7874,147.31,147.29,6.7882]
[1746654954514,6.7874,147.31,147.28,6.7887]
[1746654960123,6.7879,147.3,147.28,6.7887]
[1746654962825,6.7875,147.31,147.28,6.7887]
[1746654963627,6.7875,147.31,147.27,5.76627867]
[1746654965230,6.7878,147.3,147.28,6.7885]
[1746654978140,34.82236753,147.33,147.25,29.06]
[1746654978341,5.76348837,147.31,147.25,29.06]
[1746654978833,6.789,147.28,147.25,35.8499]
[1746654979039,5.76348837,147.31,147.25,35.8499]
[1746654980842,6.7891,147.28,147.25,35.8499]
[1746654981044,5.76348837,147.31,147.25,35.8499]
[1746654981340,5.76348837,147.31,147.26,6.7895]
[1746654981541,6.7885,147.29,147.26,6.7895]
[1746654982543,6.7885,147.29,147.27,6.7892]
[1746654983844,6.7885,147.29,147.26,6.7894]
[1746654985346,6.7885,147.29,147.27,6.7891]
[1746654989045,6.7888,147.28,147.26,6.7894]
[1746654989745,6.7895,147.27,147.25,6.7899]
[1746654997455,6.7896,147.26,147.24,6.7905]
[1746654998652,6.7893,147.27,147.25,6.7901]
[1746655003752,6.7893,147.27,147.23,5.76348837]